bitfinex/quotes_ETHUSD_20250414
["timestamp","ask_amount","ask_price","bid_price","bid_amount"]
[1744645508906,1.599,1635.7,1635.3,6.11489]
[1744645509076,7.71262,1635.7,1635.3,6.11489]
[1744645509415,7.71262,1635.7,1635.2,11.491]
[1744645509416,0.02251208,1635.8,1635.2,16.89133659]
[1744645509588,1.599,1636.0,1635.7,6.11359]
[1744645509788,1.599,1636.0,1635.4,11.57619532]
[1744645509789,6.11162,1636.3,1635.8,17.60718]
[1744645510016,7.78252208,1636.4,1635.8,11.494]
[1744645510207,7.78252208,1636.4,1635.9,6.11278]
[1744645510208,7.78268208,1636.4,1635.9,6.11278]
[1744645510521,6.11168,1636.3,1635.8,11.494]
[1744645510727,0.77826821,1636.3,1635.8,11.494]
[1744645510882,6.11278,1636.0,1635.8,11.494]
[1744645511084,7.62774,1635.9,1635.8,11.494]
[1744645511407,7.62774,1635.9,1635.3,3.0]
[1744645511408,6.11373,1635.7,1635.3,3.0]
[1744645511589,7.62776,1635.9,1635.3,3.0]
[1744645511785,6.11215,1636.1,1635.6,6.11364]
[1744645512000,1.5149,1636.2,1635.8,6.11294]
[1744645512199,1.5149,1636.2,1635.9,6.11272]
[1744645512385,1.5149,1636.2,1635.9,0.06112396]
[1744645512589,0.07251208,1636.4,1636.1,6.11184]
[1744645512909,0.07251208,1636.4,1636.0,6.11223]
[1744645513083,0.07251208,1636.4,1636.0,3.0]
[1744645513283,0.07251208,1636.4,1636.0,9.11219]
[1744645513520,6.11186,1636.2,1635.8,17.60719]
[1744645513693,6.11139,1636.3,1635.8,17.60715]
[1744645513896,6.11172,1636.2,1635.8,11.494]
[1744645514206,6.1126,1636.0,1635.8,11.494]
[1744645514406,6.11178,1636.2,1635.8,11.494]
[1744645514606,0.611178,1636.1,1635.8,11.494]
[1744645515010,0.07251208,1636.4,1636.3,6.11134]
[1744645515210,0.07251208,1636.4,1636.2,6.11155]
[1744645515522,0.07251208,1636.4,1636.3,6.11134]
[1744645515821,0.07251208,1636.4,1636.0,55.37278]
[1744645516128,0.07251208,1636.4,1636.0,49.2605]
[1744645516283,0.07251208,1636.4,1636.3,6.11134]
[1744645516727,0.07251208,1636.4,1636.2,12.22315]
[1744645517086,0.07251208,1636.4,1636.3,6.11134]
[1744645517499,0.07251208,1636.4,1636.3,6.17244875]
[1744645517699,0.07251208,1636.4,1636.3,6.11134]
[1744645517937,0.05,1636.4,1636.3,11.00588831]
[1744645518134,0.05,1636.4,1636.3,11.00588196]
[1744645518435,10.09,1637.3,1636.9,6.10881]
[1744645518651,6.10786,1637.3,1636.9,11.493]
[1744645518835,6.10873,1637.1,1636.9,11.493]
[1744645519040,6.10873,1637.0,1636.9,11.493]
[1744645519340,7.67486,1636.9,1636.5,6.11048]
[1744645519843,6.10962,1636.8,1636.4,20.6039]
[1744645520251,12.22017,1636.7,1636.4,14.493]
[1744645520462,6.10998,1636.7,1636.4,14.493]
[1744645520609,6.10998,1636.7,1636.4,11.493]
[1744645520809,6.720968,1636.7,1636.4,11.493]
[1744645521048,0.02251208,1636.8,1636.5,6.11036]
[1744645521750,6.13215208,1636.8,1636.4,23.71455]
[1744645521944,0.02251208,1636.8,1636.4,11.493]
[1744645522147,0.57251208,1636.8,1636.4,11.493]
[1744645522325,6.1106,1636.5,1636.4,11.493]
[1744645522714,6.11044,1636.6,1636.4,11.493]
[1744645522935,6.1106,1636.5,1636.4,11.493]
[1744645523142,6.721564,1636.6,1636.4,11.493]
[1744645523340,12.832104,1636.6,1636.4,11.493]
[1744645523651,6.1106,1636.5,1636.4,11.493]
[1744645523848,6.1106,1636.5,1636.4,11.47048792]
[1744645524054,7.3938164,1636.5,1636.4,11.47048792]
[1744645524222,2.8414164,1636.5,1636.1,6.11194]
[1744645524422,7.66731,1636.9,1636.4,6.11061]
[1744645524749,13.77663,1636.9,1636.5,6.11057]
[1744645524957,10.09,1637.0,1636.5,6.11057]
[1744645524958,6.17,1636.8,1636.7,6.10965]
[1744645525162,6.17,1636.9,1636.8,9.10948]
[1744645525324,12.27775,1637.3,1636.9,6.10895]
[1744645525522,6.17,1637.3,1636.8,0.4616103]
[1744645525727,6.10843,1637.1,1636.7,15.21937]
[1744645526059,12.21611,1637.2,1636.8,6.10943]
[1744645526223,6.10875,1637.0,1636.6,17.28322]
[1744645526423,7.4682717,1637.1,1636.6,17.28322]
[1744645526424,0.11995462,1636.9,1636.6,11.173]
[1744645526624,6.17,1636.8,1636.6,17.28308]
[1744645527260,6.17,1637.0,1636.6,17.28319]
[1744645527567,6.17,1637.0,1636.9,6.1091]
[1744645527720,6.17,1637.0,1636.8,6.1093]
[1744645527923,6.17,1637.0,1636.6,17.74546866]
[1744645528163,12.27912,1636.9,1636.6,11.63538866]
[1744645528352,6.10965,1636.8,1636.6,11.173]
[1744645528553,12.21929,1636.8,1636.6,11.173]
[1744645528733,6.17,1636.6,1636.1,1.583]
[1744645528921,6.17,1636.5,1636.2,12.22323]
[1744645529123,6.17,1636.5,1636.4,6.11097]
[1744645529348,6.17,1636.5,1636.1,22.32764799]
[1744645529559,6.787,1636.5,1636.1,17.74459799]
[1744645529766,6.17,1636.5,1636.3,6.11119]
[1744645530067,6.17,1636.5,1636.1,11.63263799]
[1744645530225,6.17,1636.5,1636.1,11.172]
[1744645530226,6.11168,1636.3,1636.1,11.172]
[1744645530428,6.17,1636.2,1636.1,11.172]
[1744645530641,7.65421,1636.6,1636.1,11.172]
[1744645530886,13.76467,1636.6,1636.2,6.11157]
[1744645531026,6.1106,1636.5,1636.2,6.11157]
[1744645531222,1.5439,1636.6,1636.1,11.172]
[1744645531571,6.65911,1636.9,1635.7,0.83952416]
[1744645531572,6.11268,1636.0,1635.7,0.46146236]
[1744645531718,1.5243,1636.1,1635.6,17.2849]
[1744645531719,6.11333,1635.8,1635.6,11.171]
[1744645531923,6.11406,1635.6,1635.3,1.534]
[1744645532132,6.11406,1635.6,1634.8,11.171]
[1744645532133,6.11489,1635.4,1634.8,11.171]
[1744645532322,1.5629,1635.8,1634.8,11.171]
[1744645532323,1.5629,1635.8,1635.1,6.11583]
[1744645532556,6.11226,1636.1,1635.6,6.11376]
[1744645532752,0.13683813,1635.7,1635.6,6.11376]
[1744645532993,6.11353,1635.8,1635.4,11.171]
[1744645533165,6.725153,1635.7,1635.4,11.171]
[1744645533369,6.11134,1636.3,1635.4,11.171]
[1744645533573,6.11296,1635.9,1635.5,12.22824]
[1744645533768,12.22559,1636.0,1635.6,6.11395]
[1744645533973,6.11382,1635.7,1635.4,11.171]
[1744645534365,6.11286,1635.9,1635.4,17.28554]
[1744645534697,6.724636,1635.8,1635.4,17.28554]
[1744645534893,6.11362,1635.7,1635.4,11.171]
[1744645536091,6.11362,1635.7,1634.9,16.96342]
[1744645536092,6.11473,1635.4,1634.9,16.96342]
[1744645536258,1.5323,1635.4,1634.9,10.847]
[1744645536458,1.5323,1635.4,1634.5,12.73571168]
[1744645536657,6.11574,1635.2,1634.8,6.11694]
[1744645536901,6.11574,1635.2,1634.9,6.11657]
[1744645537098,6.11574,1635.2,1634.7,6.11732]
[1744645537099,6.11596,1635.1,1634.7,6.11732]
[1744645537293,6.11596,1635.1,1634.7,6.11717]
[1744645537519,7.64733,1635.4,1634.7,0.46556495]
[1744645537520,6.11642,1635.0,1634.7,0.46556495]
[1744645537792,6.11674,1634.9,1634.6,47.629]
[1744645537999,7.66464,1634.9,1634.6,47.629]
[1744645538156,6.11824,1634.5,1634.1,17.01639]
[1744645538360,6.11824,1634.5,1634.1,17.47278938]
[1744645538559,6.11824,1634.5,1634.1,10.897]
[1744645538560,7.66656,1634.4,1634.1,10.897]
[1744645538784,7.66566,1634.6,1634.2,6.11902]
[1744645538999,1.5479,1634.6,1634.1,10.897]
[1744645539385,2.314441,1634.6,1634.1,10.897]
[1744645539583,6.11809,1634.5,1634.1,10.897]
[1744645539959,6.11859,1634.4,1634.1,10.897]
[1744645540379,6.1192,1634.2,1634.1,0.05]
[1744645540579,8.2338,1634.2,1634.1,0.05]
[1744645540802,6.12096,1633.8,1633.4,6.12218]
[1744645540988,6.12024,1634.0,1633.5,6.12161]
[1744645541213,6.11995,1634.0,1633.4,6.12216]
[1744645541400,6.11995,1634.0,1633.1,49.3475]
[1744645541401,6.12174,1633.6,1633.1,61.59394]
[1744645541722,6.12174,1633.6,1633.2,6.12264]
[1744645541723,6.12147,1633.6,1633.2,6.12264]
[1744645542006,6.12142,1633.7,1633.3,6.12248]
[1744645542218,7.65113,1633.8,1633.4,6.12184]
[1744645542502,7.65113,1633.8,1633.1,0.05]
[1744645542503,6.122,1633.5,1633.1,0.05]
[1744645542706,13.85876,1633.4,1633.1,0.05]
[1744645542910,1.6141,1633.4,1633.1,0.05]
[1744645543120,1.6141,1633.4,1633.2,6.12281]
[1744645543412,1.6141,1633.4,1633.2,6.12288]
[1744645543735,1.5118,1633.7,1633.3,6.12244]
[1744645543873,6.12145,1633.6,1633.2,6.1228]
[1744645544072,1.5118,1633.7,1633.1,6.17294]
[1744645544073,1.5118,1633.7,1633.3,6.12257]
[1744645544308,1.5118,1633.7,1633.3,6.12238]
[1744645544507,6.12185,1633.5,1633.1,0.05]
[1744645545026,12.7932,1633.6,1633.1,6.17312]
[1744645545208,6.67146,1633.6,1633.1,6.17311]
[1744645545394,6.6717,1633.6,1633.1,6.17311]
[1744645545601,7.63289,1633.7,1633.1,0.05]
[1744645545904,0.55,1633.6,1633.1,0.05]
[1744645546090,6.12196,1633.5,1633.1,6.17332]
[1744645546295,1.5118,1633.7,1633.1,4.6179]
[1744645546496,1.5825,1633.9,1633.4,6.12218]
[1744645546667,6.12111,1633.7,1633.2,6.12294]
[1744645546873,8.25299,1633.9,1633.5,6.12163]
[1744645547105,1.5825,1633.9,1633.1,10.07946045]
[1744645547411,1.5825,1633.9,1633.4,6.12193]
[1744645547580,6.12118,1633.7,1633.3,6.12238]
[1744645547785,6.12118,1633.7,1633.3,12.24473]
[1744645548014,7.70287,1633.9,1633.2,6.12293]
[1744645548308,6.11891,1634.3,1633.2,6.12293]
[1744645548309,1.5859,1634.3,1633.6,6.12142]
[1744645548472,7.70487,1634.3,1633.6,7.71692]
[1744645548677,13.82393,1634.3,1633.8,12.24074]
[1744645548873,13.82393,1634.3,1633.8,6.12034]
[1744645549078,13.82393,1634.3,1633.9,6.12025]
[1744645549308,6.11929,1634.2,1633.8,6.12034]
[1744645549476,6.11929,1634.2,1633.8,6.58386206]
[1744645549676,6.11929,1634.2,1633.8,6.12034]
[1744645550077,6.11929,1634.2,1633.8,12.24084]
[1744645550277,7.70474,1634.3,1633.9,6.12029]
[1744645550473,1.5859,1634.3,1634.0,6.11979]
[1744645550928,6.11848,1634.4,1634.0,6.11979]
[1744645551449,1.984707,1634.6,1634.0,1.224008]
[1744645551759,7.65352,1635.0,1634.3,6.11856]
[1744645551978,7.65352,1635.0,1634.7,6.1172]
[1744645551979,1.5372,1635.0,1634.7,6.1172]
[1744645552251,1.5903,1635.3,1634.9,6.11641]
[1744645552411,1.5903,1635.6,1634.7,4.59596977]
[1744645552619,12.22918,1635.5,1634.9,6.1163]
[1744645552814,7.67105,1635.2,1634.7,0.44883904]
[1744645553019,7.67105,1635.2,1634.6,6.11765]
[1744645553214,6.11637,1635.0,1634.6,6.11765]
[1744645553430,6.11673,1634.9,1634.6,0.45351588]
[1744645553611,0.55,1634.9,1634.3,12.0265]
[1744645553967,1.5992,1634.8,1634.3,6.5694865]
[1744645554129,6.1182,1634.5,1634.2,6.11913]
[1744645554328,6.1186,1634.4,1634.0,7.67603]
[1744645554523,6.1186,1634.4,1634.0,12.23952]
[1744645554738,6.11904,1634.3,1634.0,0.4575508]
[1744645554944,6.11904,1634.3,1633.9,16.63816]
[1744645555125,12.23713,1634.4,1634.0,6.11993]
[1744645555329,6.119,1634.3,1633.9,22.75852]
[1744645555649,6.119,1634.3,1633.9,16.6382]
[1744645555952,6.11895,1634.3,1633.9,16.63828]
[1744645556137,6.1185,1634.4,1633.9,16.63813]
[1744645556338,6.11983,1634.1,1633.9,10.518]
[1744645556541,6.11924,1634.2,1633.9,10.518]
[1744645556857,7.77661,1634.4,1634.0,12.23963]
[1744645557028,1.6581,1634.4,1634.0,6.11995]
[1744645557217,6.11788,1634.6,1634.2,6.11908]
[1744645557218,12.23595,1634.6,1634.2,6.11908]
[1744645557418,12.23586,1634.6,1634.2,6.11908]
[1744645557645,13.79012,1634.7,1634.0,6.11988]
[1744645557835,13.79012,1634.7,1634.3,6.11865]
[1744645558155,12.23568,1634.6,1634.2,6.11913]
[1744645558362,0.55,1634.6,1633.9,10.518]
[1744645558530,9.106682,1634.7,1633.8,6.12068]
[1744645558531,1.6231,1634.2,1633.8,6.12068]
[1744645558725,6.12023,1634.0,1633.7,0.46534553]
[1744645558919,0.55,1634.1,1633.5,58.215]
[1744645558920,6.11967,1634.1,1633.5,58.215]
[1744645559155,7.74233,1634.2,1633.5,64.80634582]
[1744645559467,6.12005,1634.0,1633.7,6.12086]
[1744645559756,6.12014,1634.0,1633.6,6.12128]
[1744645560254,1.6231,1634.2,1633.7,6.12089]
[1744645560458,0.55,1634.1,1633.1,1.6926]
[1744645560758,6.12147,1633.6,1633.2,6.12282]
[1744645560965,1.6231,1633.7,1633.4,6.12202]
[1744645561265,6.12247,1633.4,1633.2,0.44984222]
[1744645561421,6.12275,1633.3,1633.1,0.05]
[1744645561615,6.12193,1633.5,1633.1,0.05]
[1744645561837,0.55,1633.6,1633.1,0.05]
[1744645562047,6.12246,1633.4,1633.1,0.05]
[1744645562230,1.6231,1633.7,1633.1,0.05]
[1744645562435,1.6231,1633.7,1633.4,6.12187]
[1744645562745,0.55,1633.6,1633.2,3.0]
[1744645562944,7.74423,1633.7,1633.3,6.12235]
[1744645563346,1.6231,1633.7,1633.2,3.0]
[1744645563553,6.12294,1633.2,1633.1,0.05]
[1744645563953,8.24304,1633.2,1633.1,0.05]
[1744645564270,9.679617,1633.2,1633.1,0.05]
[1744645564628,7.69304,1633.2,1633.1,0.05]
[1744645565347,1.64,1633.8,1633.1,0.05]
[1744645565550,1.64,1633.8,1633.3,9.12224]
[1744645565737,6.12145,1633.6,1633.4,3.0]
[1744645565922,6.12128,1633.7,1633.4,3.0]
[1744645566123,12.2426,1633.7,1633.4,3.0]
[1744645566469,12.2426,1633.7,1633.3,6.12224]
[1744645566470,6.12144,1633.6,1633.1,10.57]
[1744645566626,6.12294,1633.2,1633.1,0.05]
[1744645567265,6.67294,1633.2,1633.1,0.05]
[1744645567434,6.12118,1633.7,1633.1,10.571]
[1744645567637,6.12128,1633.7,1633.1,19.93395757]
[1744645567834,0.31820009,1633.9,1633.3,3.0]
[1744645568159,6.12116,1633.7,1633.4,1.6202]
[1744645568359,1.6077,1634.1,1633.1,11.97838957]
[1744645568360,6.12203,1633.5,1633.1,11.03088877]
[1744645568657,7.62129,1633.9,1633.1,9.6943101]
[1744645568840,7.62031,1634.2,1633.7,6.12094]
[1744645569042,7.62031,1634.2,1633.5,6.12182]
[1744645569043,1.5008,1634.2,1633.9,6.12027]
[1744645569361,6.119,1634.3,1633.5,8.40033659]
[1744645569518,6.11922,1634.2,1633.8,12.24119]
[1744645569715,6.11855,1634.4,1633.7,10.522]
[1744645569953,6.11973,1634.1,1633.7,16.64295]
[1744645570120,6.12025,1634.0,1633.7,10.522]
[1744645570521,6.11882,1634.3,1633.7,10.522]
[1744645570757,7.619,1634.5,1633.7,10.522]
[1744645570758,12.24116,1633.9,1633.7,10.522]
[1744645570960,6.12055,1633.9,1633.7,10.522]
[1744645571258,6.12055,1633.9,1633.6,0.47016664]
[1744645571471,6.12002,1634.0,1633.7,6.12106]
[1744645571677,6.11924,1634.2,1633.4,10.68211]
[1744645571833,6.11985,1634.1,1633.7,6.1209]
[1744645572339,6.11984,1634.1,1633.7,12.2418]
[1744645572559,6.11984,1634.1,1633.7,6.12089]
[1744645572761,7.61938,1634.3,1633.6,0.45259332]
[1744645572961,12.24123,1633.9,1633.5,6.1217]
[1744645573160,0.55,1634.1,1633.8,6.12048]
[1744645573364,1.5005,1634.3,1634.0,6.1198]
[1744645573567,6.11869,1634.4,1634.0,6.11979]
[1744645573772,12.23749,1634.4,1634.0,6.11979]
[1744645574275,12.23803,1634.3,1633.9,18.14174]
[1744645574441,8.31027,1634.6,1633.9,18.14174]
[1744645574442,6.11845,1634.4,1633.9,10.9750157]
[1744645574636,6.1199,1634.1,1633.9,10.9750157]
[1744645574856,0.55,1634.3,1633.9,10.9750157]
[1744645575041,6.11975,1634.1,1633.9,10.9750157]
[1744645575437,12.23965,1634.1,1633.9,0.4540157]
[1744645575639,12.23943,1634.1,1633.7,3.0]
[1744645575852,6.66886,1634.3,1633.6,13.88078]
[1744645575853,6.12024,1634.0,1633.6,13.88078]
[1744645576039,6.12024,1634.0,1633.7,6.12101]
[1744645576239,6.66884,1634.3,1633.6,7.75939]
[1744645576240,6.12036,1633.9,1633.6,7.75939]
[1744645576438,6.12101,1633.8,1633.6,1.6381]
[1744645576639,6.12107,1633.7,1633.5,10.52]
[1744645576847,6.12144,1633.6,1633.5,10.52]
[1744645577138,6.12236,1633.4,1633.1,12.1459]
[1744645577343,1.5103,1633.7,1633.1,16.9692514]
[1744645577553,6.12035,1633.9,1633.1,12.60979907]
[1744645577554,6.67032,1633.9,1633.1,12.60979907]
[1744645577758,6.12144,1633.6,1633.1,12.60979907]
[1744645577982,12.24477,1633.4,1633.1,17.15718907]
[1744645578172,6.12286,1633.3,1633.1,11.03389907]
[1744645578374,12.24463,1633.4,1633.1,11.03389907]
[1744645578569,1.5507,1633.8,1633.1,15.85725047]
[1744645578769,6.12153,1633.6,1633.1,11.03389907]
[1744645578971,1.5507,1633.8,1633.2,12.24549]
[1744645578972,6.122,1633.5,1633.2,12.24549]
[1744645579281,6.12184,1633.5,1633.1,17.15712907]
[1744645579581,6.12184,1633.5,1633.1,23.28035907]
[1744645579784,7.284004,1633.5,1633.1,0.05]
[1744645579982,6.12294,1633.2,1633.1,0.05]
[1744645580193,6.67294,1633.2,1633.1,0.05]
[1744645581347,7.70284,1633.3,1633.1,0.05]
[1744645581348,13.82561,1633.3,1633.1,0.05]
[1744645581549,6.12193,1633.5,1633.2,6.12293]
[1744645581853,6.12183,1633.5,1633.1,13.8559]
[1744645582055,6.12182,1633.5,1633.2,6.12289]
[1744645582246,6.12182,1633.5,1633.2,6.12293]
[1744645582450,2.1851,1633.8,1633.1,1.6094]
[1744645582451,6.67107,1633.7,1633.1,1.6094]
[1744645582651,6.12235,1633.4,1633.1,1.6094]
[1744645582861,6.12235,1633.4,1633.1,7.73264]
[1744645583052,6.12195,1633.5,1633.2,6.12293]
[1744645583253,6.1216,1633.6,1633.3,6.12256]
[1744645583550,12.24322,1633.6,1633.3,6.12256]
[1744645583778,12.2433,1633.6,1633.3,6.12256]
[1744645583983,12.2433,1633.6,1633.2,13.631257]
[1744645584184,12.24342,1633.6,1633.2,4.385557]
[1744645584493,1.6351,1633.8,1633.2,4.385557]
[1744645584494,6.12189,1633.5,1633.2,4.385557]
[1744645584659,6.12273,1633.3,1633.1,0.05]
[1744645584979,12.24554,1633.3,1633.1,0.05]
[1744645585485,6.12273,1633.3,1633.1,0.05]
[1744645585690,0.55,1633.6,1633.1,0.05]
[1744645585886,12.24495,1633.4,1633.1,0.05]
[1744645586064,6.12268,1633.3,1633.1,0.05]
[1744645586682,6.12166,1633.6,1633.3,6.12252]
[1744645587000,6.12161,1633.6,1633.3,6.12246]
[1744645587204,12.24323,1633.6,1633.3,6.12246]
[1744645587389,1.6351,1633.8,1633.3,0.46525894]
[1744645587566,8.531396,1633.8,1633.1,9.17322]
[1744645587900,8.531396,1633.8,1633.1,9.17327]
[1744645587901,6.12248,1633.4,1633.1,9.17327]
[1744645588090,6.12294,1633.2,1633.1,0.05]
[1744645588294,6.12227,1633.4,1633.1,6.1733]
[1744645588466,6.12227,1633.4,1633.1,12.29648]
[1744645588662,6.12185,1633.5,1633.2,6.1229]
[1744645588903,6.12235,1633.4,1633.1,6.17318]
[1744645589106,6.12235,1633.4,1633.1,0.05]
[1744645589286,6.12261,1633.3,1633.1,0.05]
[1744645589686,6.12119,1633.7,1633.4,6.12215]
[1744645589869,6.12107,1633.7,1633.1,6.790525]
[1744645590074,6.12187,1633.5,1633.2,6.1229]
[1744645590270,6.12237,1633.4,1633.1,0.05]
[1744645590613,6.12273,1633.3,1633.1,0.05]
[1744645590800,6.12294,1633.2,1633.1,0.05]
[1744645591108,6.6712,1633.7,1633.1,0.05]
[1744645591311,6.12407,1632.9,1632.8,2.09331096]
[1744645591609,6.12,1632.9,1632.2,59.7257]
[1744645591811,12.24995,1632.7,1632.3,6.58184002]
[1744645592111,6.1261,1632.4,1632.2,59.7257]
[1744645592424,6.1261,1632.4,1632.1,0.05]
[1744645592425,6.12,1632.3,1632.1,0.05]
[1744645592775,6.12,1632.3,1632.1,6.17706]
[1744645592975,6.12,1632.2,1632.1,0.05]
[1744645593514,12.2467,1632.2,1632.1,0.51723567]
[1744645593673,12.2467,1632.2,1632.1,0.05]
[1744645593873,14.634019,1632.2,1632.1,0.05]
[1744645594111,14.084019,1632.2,1632.1,0.05]
[1744645594317,14.634019,1632.2,1632.1,0.05]
[1744645594679,6.12,1632.2,1632.1,0.05]
[1744645595404,6.12,1632.2,1632.1,8.25204121]
[1744645595616,6.12,1632.2,1632.1,10.78297]
[1744645596188,6.12,1632.2,1632.1,1.6559]
[1744645596377,6.12,1632.2,1632.1,0.05]
[1744645596714,6.12,1632.2,1632.1,6.17707]
[1744645597478,6.12,1632.2,1632.1,6.23833589]
[1744645597915,6.12,1632.2,1632.1,6.17707]
[1744645598078,6.12,1632.2,1632.1,11.63867118]
[1744645598773,6.12,1632.2,1632.1,14.63867118]
[1744645598976,6.12,1632.2,1632.1,16.22130659]
[1744645599174,6.12,1632.2,1632.1,18.50155058]
[1744645600776,6.12,1632.2,1632.1,16.22130659]
[1744645602628,16.2141,1632.9,1632.6,6.12483]
[1744645602929,6.17,1632.8,1632.6,12.24987]
[1744645603107,6.17,1632.8,1632.6,12.2499]
[1744645603294,6.17,1632.8,1632.5,6.12556]
[1744645603488,12.29457,1632.8,1632.5,12.25102]
[1744645603689,6.17,1632.7,1632.6,6.12507]
[1744645603936,6.17,1633.0,1632.9,6.12407]
[1744645604136,6.17,1633.4,1633.3,6.12257]
[1744645604502,6.17,1633.4,1633.2,6.12264]
[1744645604741,6.17,1633.4,1632.7,5.06588683]
[1744645604742,6.12294,1633.2,1632.7,5.06588683]
[1744645604946,12.29334,1633.1,1632.8,6.1242]
[1744645605240,6.12451,1632.8,1632.5,6.1254]
[1744645605445,6.17,1632.7,1632.6,6.125]
[1744645606539,6.17,1632.6,1632.2,10.132]
[1744645606737,6.12648,1632.3,1632.1,0.05]
[1744645606926,12.2967,1632.2,1632.1,0.05]
[1744645607746,12.8467,1632.2,1632.1,0.05]
[1744645608050,14.3629,1632.2,1631.4,9.824]
[1744645608208,7.64494,1631.7,1631.4,9.824]
[1744645608409,1.5162,1632.0,1631.8,6.12803]
[1744645608626,7.7336,1632.2,1631.7,6.12857]
[1744645608814,6.12745,1632.0,1631.7,6.12857]
[1744645609022,13.86034,1632.2,1631.8,6.12816]
[1744645609343,7.7336,1632.2,1631.9,6.12758]
[1744645610106,7.7336,1632.2,1631.7,3.0]
[1744645610311,6.17,1632.2,1632.1,6.12707]
[1744645610535,6.17,1632.2,1632.0,6.12728]
[1744645610738,6.17,1632.2,1631.9,9.826]
[1744645610950,6.128,1631.9,1631.5,17.46382]
[1744645611120,6.12745,1632.0,1631.6,12.25766]
[1744645611310,1.6386,1632.1,1631.6,6.12895]
[1744645611518,1.6386,1632.1,1631.9,6.12763]
[1744645611719,6.17,1632.2,1631.9,6.12767]
[1744645611959,6.17,1632.2,1632.0,6.12719]
[1744645612163,6.12708,1632.1,1631.8,6.12783]
[1744645612320,6.17,1632.2,1631.6,6.12891]
[1744645612662,6.12862,1631.7,1631.5,9.826]
[1744645612816,7.7305,1631.9,1631.5,9.826]
[1744645613018,7.7305,1631.9,1631.6,6.1288]
[1744645613256,6.1282,1631.8,1631.5,9.826]
[1744645613461,1.6026,1631.9,1631.6,6.12881]
[1744645613646,6.17,1632.1,1631.8,6.12806]
[1744645613847,6.17,1632.1,1631.5,15.95529]
[1744645613848,12.29734,1632.1,1631.7,6.12849]
[1744645614164,12.29727,1632.1,1631.7,6.12844]
[1744645614362,12.29725,1632.1,1631.7,6.1284]
[1744645614532,7.558505,1632.1,1631.5,9.826]
[1744645614737,13.685725,1632.1,1631.7,6.12841]
[1744645614938,19.813005,1632.1,1631.7,6.12841]
[1744645615247,19.813005,1632.1,1631.8,6.12819]
[1744645615248,6.12722,1632.1,1631.8,6.12819]
[1744645615448,12.25448,1632.1,1631.8,6.12819]
[1744645615651,1.5878,1632.2,1631.5,15.95525]
[1744645615849,6.12707,1632.1,1631.5,9.826]
[1744645616169,0.771487,1632.1,1631.6,6.1286]
[1744645616328,6.12759,1632.0,1631.7,6.12846]
[1744645616524,6.12745,1632.0,1631.7,6.12846]
[1744645616928,6.12745,1632.0,1631.7,6.12851]
[1744645617140,1.5878,1632.2,1631.7,12.25694]
[1744645617344,1.5878,1632.2,1632.0,6.12723]
[1744645617557,6.12641,1632.3,1631.9,12.2555]
[1744645617758,6.1267,1632.2,1631.6,6.12886]
[1744645617931,1.5829,1632.0,1631.5,9.826]
[1744645618134,1.5829,1632.0,1631.1,0.05]
[1744645618135,6.12922,1631.6,1631.2,6.13033]
[1744645618353,6.12922,1631.6,1631.2,12.2606]
[1744645618673,6.12922,1631.6,1631.2,6.13027]
[1744645619036,6.12947,1631.5,1631.2,6.13027]
[1744645619239,6.1302,1631.3,1631.1,9.879]
[1744645619435,2.207522,1631.6,1631.1,9.879]
[1744645619771,14.465722,1631.6,1631.1,16.00981]
[1744645619966,1.5946,1631.6,1631.1,22.14046]
[1744645620126,7.7236,1631.6,1631.2,6.13023]
[1744645620332,6.12933,1631.5,1631.1,16.00976]
[1744645620527,6.12988,1631.4,1631.1,9.879]
[1744645620758,6.13045,1631.2,1631.1,9.879]
[1744645620942,6.13045,1631.2,1631.1,0.05]
[1744645621352,7.70615,1631.2,1631.1,0.05]
[1744645622055,8.25615,1631.2,1631.1,0.05]
[1744645622685,1.6537,1631.5,1631.1,0.05]
[1744645622973,6.44618306,1631.9,1631.3,6.12973]
[1744645622974,6.12858,1631.7,1631.3,6.12973]
[1744645623134,1.6143,1631.8,1631.2,9.832]
[1744645623336,6.1272,1632.1,1631.7,6.12857]
[1744645623561,6.12761,1632.0,1631.6,6.1289]
[1744645623873,6.12761,1632.0,1631.6,12.2578]
[1744645623874,12.25528,1632.0,1631.6,12.2578]
[1744645624071,6.12834,1631.8,1631.5,7.73017]
[1744645624275,1.5082,1632.2,1631.5,7.73022]
[1744645624448,6.12759,1632.0,1631.6,6.12866]
[1744645624843,7.63491,1632.2,1631.5,7.7303]
[1744645625076,3.0,1632.1,1631.5,1.601]
[1744645625371,6.12681,1632.2,1631.8,6.12791]
[1744645625567,6.12731,1632.1,1631.8,9.832]
[1744645625769,7.78897,1632.0,1631.5,1.601]
[1744645625975,6.12707,1632.1,1631.7,6.12843]
[1744645626135,12.25438,1632.1,1631.5,1.601]
[1744645626522,1.6614,1632.3,1632.0,6.12721]
[1744645626988,6.12648,1632.3,1632.0,6.12721]
[1744645627142,1.6372,1632.2,1632.0,6.12721]
[1744645627347,6.12602,1632.4,1632.0,12.25469]
[1744645627654,6.12602,1632.4,1631.9,9.831]